bitfinex/quotes_ETHUSD_20240602
["timestamp","ask_amount","ask_price","bid_price","bid_amount"]
[1717290968398,0.56384269,3834.9,3834.8,0.7]
[1717290968892,5.60762,3835.0,3834.8,0.73017103]
[1717290969253,5.09274,3835.4,3834.8,0.73017103]
[1717290969555,2.60734,3835.4,3835.3,0.7]
[1717290969755,3.17111507,3835.4,3835.3,0.7]
[1717290969987,3.17111477,3835.4,3835.3,0.72901291]
[1717290970457,2.60734,3835.4,3835.3,0.72901291]
[1717290970661,5.60734,3835.4,3835.3,0.72901291]
[1717290972558,5.60734,3835.4,3835.3,0.7]
[1717290972959,2.60734,3835.4,3835.3,0.7]
[1717290973558,2.60708,3835.7,3835.3,0.7]
[1717290973759,2.60708,3835.7,3835.6,0.7]
[1717290974154,2.60708,3835.7,3835.6,0.72871902]
[1717290976391,2.60708,3835.7,3835.6,0.7]
[1717290983216,2.60708,3835.7,3834.8,2.60767]
[1717290983415,2.60708,3835.7,3835.6,0.7]
[1717290989824,2.6073,3835.4,3834.9,0.498237]
[1717290990024,2.6073,3835.4,3835.3,0.7]
[1717290990216,2.6073,3835.4,3835.3,0.72572177]
[1717290993905,2.6073,3835.4,3835.3,0.02572177]
[1717290994343,2.60749,3835.1,3835.0,0.7]
[1717290994859,2.60749,3835.1,3835.0,0.72501896]
[1717290999143,2.60729,3835.4,3835.0,0.72501896]
[1717290999349,2.60729,3835.4,3835.3,0.7]
[1717290999511,2.6071,3835.7,3835.3,0.7]
[1717290999712,2.6071,3835.7,3835.6,0.7]
[1717291000021,2.6071,3835.7,3834.9,2.2991]
[1717291000243,2.6071,3835.7,3835.6,0.7]
[1717291000425,3.95831693,3835.7,3835.6,0.7]
[1717291000805,3.95831693,3835.7,3835.4,0.7]
[1717291001005,2.60722,3835.5,3835.4,0.7]
[1717291002939,2.60702,3835.8,3835.4,2.9991]
[1717291003124,2.60702,3835.8,3835.6,0.7]
[1717291003125,0.5637175,3835.7,3835.6,0.7]
[1717291003324,2.60702,3835.8,3835.6,0.7]
[1717291003649,2.60702,3835.8,3835.6,0.72487333]
[1717291006331,2.6068,3836.2,3835.6,0.72487333]
[1717291006530,2.60689,3836.0,3835.6,0.02487333]
[1717291006854,2.60689,3836.0,3835.9,0.7]
[1717291015660,2.60668,3836.3,3835.9,0.7]
[1717291015860,0.56364475,3836.2,3835.4,4.90638]
[1717291016079,0.56364405,3836.2,3836.1,0.7]
[1717291016307,2.60668,3836.3,3836.1,0.7]
[1717291016513,2.60668,3836.3,3836.1,0.72437431]
[1717291020817,2.60668,3836.3,3836.1,0.73181653]
[1717291024211,2.60668,3836.3,3836.1,0.7]
[1717291025747,2.60668,3836.3,3835.4,2.60728]
[1717291025952,4.86858,3836.3,3836.1,0.7]
[1717291027314,0.56361266,3836.2,3836.1,0.7]
[1717291027858,4.86858,3836.3,3836.1,0.7]
[1717291028347,0.56361246,3836.2,3836.1,0.7]
[1717291037188,3.56361246,3836.6,3836.1,0.7]
[1717291037488,3.56361246,3836.6,3836.5,0.7]
[1717291037644,0.56361246,3836.6,3836.5,0.7]
[1717291039885,0.56359899,3836.6,3836.5,0.7]
[1717291045170,2.45733356,3836.6,3836.5,0.7]
[1717291046694,0.56359899,3836.6,3836.5,0.7]
[1717291047104,0.00179869,3838.0,3836.5,0.7]
[1717291047401,0.00179869,3838.0,3837.9,0.7]
[1717291053878,0.00179869,3838.0,3836.8,2.4737]
[1717291054086,0.00179869,3838.0,3837.2,0.7]
[1717291054408,2.3247,3837.9,3837.2,0.7]
[1717291054611,2.3247,3837.9,3836.6,0.31737]
[1717291054830,2.3247,3837.9,3837.2,0.7]
[1717291055320,2.60595,3837.4,3837.2,0.7]
[1717291056727,2.60617,3837.1,3836.0,4.89962]
[1717291056941,2.60617,3837.1,3836.7,0.7]
[1717291059717,2.60647,3836.6,3836.0,2.2928]
[1717291059917,2.60647,3836.6,3836.5,0.7]
[1717291063027,2.60671,3836.3,3835.6,2.2928]
[1717291063235,2.60671,3836.3,3836.2,0.7]
[1717291068124,2.60671,3836.3,3835.6,2.2928]
[1717291068325,2.60671,3836.3,3836.2,0.7]
[1717291070432,2.60646,3836.7,3836.2,0.7]
[1717291070734,2.60646,3836.7,3836.5,0.7]
[1717291076718,2.60664,3836.4,3836.3,0.7]
[1717291077727,2.60664,3836.4,3835.6,2.2928]
[1717291077942,2.60664,3836.4,3836.1,0.7]
[1717291078229,2.60664,3836.4,3836.3,0.7]
[1717291079155,2.60664,3836.4,3835.6,2.2928]
[1717291079363,2.60664,3836.4,3836.2,0.7]
[1717291080164,2.60694,3836.0,3835.2,2.3523]
[1717291080341,2.60694,3836.0,3835.3,0.495972]
[1717291080751,2.60694,3836.0,3835.7,0.7]
[1717291082537,2.6072,3835.6,3834.8,9.6723]
[1717291082756,2.6072,3835.6,3835.5,0.7]
[1717291083756,2.6072,3835.6,3834.8,2.3523]
[1717291083987,2.6072,3835.6,3835.4,0.7]
[1717291089355,2.6072,3835.6,3835.3,0.7]
[1717291090071,2.6072,3835.6,3834.8,2.3523]
[1717291090267,2.6072,3835.6,3835.3,0.7]
[1717291090444,2.2703,3835.8,3834.8,2.3523]
[1717291090649,2.2703,3835.8,3835.4,0.7]
[1717291094439,5.2703,3836.2,3835.7,0.7]
[1717291094644,7.32,3836.5,3835.4,2.3523]
[1717291094645,3.0,3836.4,3836.0,0.7]
[1717291094842,3.0,3836.4,3836.2,0.7]
[1717291095079,2.2703,3836.5,3836.2,0.7]
[1717291095579,3.0,3836.8,3836.4,0.7]
[1717291096099,8.539287,3836.9,3836.4,0.7]
[1717291097165,3.0,3836.8,3836.4,0.7]
[1717291098586,3.0,3836.8,3836.5,2.60652]
[1717291098778,3.0,3837.0,3836.5,2.60652]
[1717291098945,2.2703,3837.1,3836.5,2.60652]
[1717291099421,2.2703,3837.1,3836.6,0.7]
[1717291099582,3.057923,3837.1,3836.6,0.7]
[1717291099785,3.0,3837.0,3836.6,0.7]
[1717291102085,3.0,3837.0,3836.5,2.60652]
[1717291102430,3.0,3837.0,3836.5,3.30652]
[1717291120971,7.32,3837.9,3837.3,2.60599]
[1717291121257,1.24997856,3838.0,3837.7,0.7]
[1717291121423,0.00179869,3838.0,3837.7,0.7]
[1717291124339,0.00179869,3838.0,3837.5,0.7]
[1717291124540,0.00179869,3838.0,3837.7,0.7]
[1717291126742,0.00179869,3838.0,3837.3,2.60599]
[1717291126973,3.56523841,3838.0,3837.4,0.7]
[1717291127278,0.56343972,3837.9,3837.4,0.7]
[1717291127647,2.41,3837.9,3837.4,0.7]
[1717291132714,3.21172587,3837.9,3837.4,0.7]
[1717291132909,5.60566,3837.8,3837.2,0.7]
[1717291133875,5.60566,3837.8,3836.9,2.6062]
[1717291134075,6.48757846,3837.8,3837.0,0.7]
[1717291135874,2.60586,3837.5,3837.0,0.7]
[1717291140494,2.60586,3837.5,3836.5,2.60647]
[1717291140808,2.4223,3837.2,3836.7,0.7]
[1717291141027,2.4223,3837.2,3836.9,0.7]
[1717291141317,3.0,3837.3,3836.9,0.7]
[1717291141483,2.4223,3837.5,3836.9,0.7]
[1717291141680,0.55,3837.4,3836.9,0.7]
[1717291141917,3.55,3837.4,3836.9,0.7]
[1717291142375,2.6062,3837.1,3836.9,0.7]
[1717291147181,2.6062,3837.1,3835.3,2.60732]
[1717291147182,3.1223,3837.0,3835.2,9.8198]
[1717291147392,2.60671,3836.3,3835.6,2.60714]
[1717291147582,2.60671,3836.3,3835.8,0.7]
[1717291148412,2.60671,3836.3,3836.0,0.7]
[1717291148840,2.60671,3836.3,3835.8,0.7]
[1717291150400,2.60689,3836.0,3835.8,0.7]
[1717291150838,2.60689,3836.0,3835.3,0.510716]
[1717291151050,2.60689,3836.0,3835.5,0.7]
[1717291151852,2.60689,3836.0,3835.3,0.510716]
[1717291152006,2.60689,3836.0,3835.5,0.7]
[1717291152844,2.60689,3836.0,3835.4,0.7]
[1717291154047,2.60689,3836.0,3835.6,0.7]
[1717291160618,2.3337,3835.9,3835.4,0.7]
[1717291161523,2.60703,3835.8,3835.4,0.7]
[1717291163065,2.60703,3835.8,3834.9,2.3772]
[1717291163066,2.60724,3835.5,3835.3,0.7]
[1717291167443,2.60698,3835.9,3835.3,0.7]
[1717291167643,2.60698,3835.9,3834.9,2.3772]
[1717291167644,2.60698,3835.9,3835.5,0.7]
[1717291170335,12.26045,3836.2,3835.5,0.7]
[1717291170548,12.26045,3836.2,3835.7,0.7]
[1717291170868,9.92675,3836.2,3835.9,0.7]
[1717291172069,2.60675,3836.2,3835.9,0.7]
[1717291176289,0.56364066,3836.1,3835.9,0.7]
[1717291177293,2.60675,3836.2,3835.9,0.7]
[1717291177440,0.56364092,3836.1,3835.9,0.7]
[1717291181042,4.97048,3836.0,3835.4,2.60723]
[1717291181246,0.56364092,3835.9,3835.1,2.60747]
[1717291181447,0.56364092,3835.9,3835.6,0.7]
[1717291184782,4.97048,3836.0,3835.6,0.7]
[1717291184978,0.56365321,3835.9,3835.6,0.7]
[1717291188075,0.56365321,3835.9,3835.2,0.510659]
[1717291188287,0.56365321,3835.9,3835.8,0.7]
[1717291188805,2.60688,3836.0,3835.8,0.7]
[1717291189117,0.56364612,3835.9,3835.8,0.7]
[1717291189450,0.56364585,3835.9,3835.6,0.7]
[1717291189700,2.92724585,3835.9,3835.6,0.7]
[1717291190051,2.3636,3835.9,3835.6,0.7]
[1717291191593,2.60688,3836.0,3835.2,0.510659]
[1717291191805,2.60701,3835.8,3835.6,0.7]
[1717291192246,2.60701,3835.8,3835.5,0.7]
[1717291193288,0.56366368,3835.7,3835.5,0.7]
[1717291193591,2.60701,3835.8,3835.5,0.7]
[1717291195271,0.56366661,3835.7,3835.5,0.7]
[1717291195467,0.56366621,3835.7,3835.5,0.7]
[1717291195670,2.60715,3835.6,3835.5,0.7]
[1717291196068,2.60735,3835.4,3834.8,2.2614]
[1717291196296,2.60735,3835.4,3835.1,0.7]
[1717291196456,2.60735,3835.4,3834.6,5.09656]
[1717291196796,2.60735,3835.4,3835.0,0.7]
[1717291197357,2.60735,3835.4,3835.2,0.7]
[1717291200877,2.60735,3835.4,3834.6,5.09656]
[1717291201204,2.60735,3835.4,3835.0,0.7]
[1717291202665,2.60735,3835.4,3834.7,0.509656]
[1717291202886,2.60735,3835.4,3835.0,0.7]
[1717291212043,2.60735,3835.4,3835.2,0.7]
[1717291212248,2.60735,3835.4,3834.7,0.509656]
[1717291212420,2.60735,3835.4,3835.2,0.7]
[1717291216452,2.60735,3835.4,3835.0,0.7]
[1717291221255,2.2859,3835.0,3834.1,2.3804]
[1717291221556,0.56374081,3834.9,3834.3,0.7]
[1717291221983,2.6077,3834.8,3834.3,0.7]
[1717291222668,2.60789,3834.6,3833.9,2.3804]
[1717291222819,2.2859,3834.5,3834.2,0.7]
[1717291223713,2.2859,3834.5,3833.9,0.23804]
[1717291223714,2.60798,3834.4,3833.9,0.23804]
[1717291223919,2.60798,3834.4,3834.2,0.7]
[1717291226620,2.60798,3834.4,3833.7,2.3804]
[1717291226817,2.60798,3834.4,3834.0,0.7]
[1717291228041,2.60798,3834.4,3834.2,0.7]
[1717291231770,2.60798,3834.4,3834.3,0.05348144]
[1717291232068,2.60798,3834.4,3834.2,0.7]
[1717291232367,2.60798,3834.4,3834.3,0.05392343]
[1717291232756,2.60798,3834.4,3834.2,0.7]
[1717291233173,2.60798,3834.4,3834.3,0.05392343]
[1717291233575,2.60798,3834.4,3834.2,0.7]
[1717291233774,2.60798,3834.4,3834.3,0.05392343]
[1717291234238,2.60798,3834.4,3834.2,0.7]
[1717291234641,2.60798,3834.4,3834.3,0.05392343]
[1717291234873,2.60798,3834.4,3834.2,0.7]
[1717291235177,2.60798,3834.4,3834.3,0.05392343]
[1717291235470,2.60798,3834.4,3834.2,0.7]
[1717291235674,2.60798,3834.4,3834.3,0.05392343]
[1717291235876,2.60798,3834.4,3834.2,0.7]
[1717291236172,2.60798,3834.4,3834.3,0.05392343]
[1717291236549,2.60798,3834.4,3834.2,0.7]
[1717291236749,2.60798,3834.4,3834.3,0.05392343]
[1717291236989,2.60798,3834.4,3834.2,0.7]
[1717291237273,2.60798,3834.4,3834.3,0.05392343]
[1717291237436,2.60798,3834.4,3834.2,0.7]
[1717291237864,2.60798,3834.4,3834.3,0.05392343]
[1717291238236,2.60798,3834.4,3834.2,0.7]
[1717291238435,2.60798,3834.4,3834.3,0.05392343]
[1717291238980,2.4395,3834.3,3833.7,0.7]
[1717291239149,2.4395,3834.3,3833.8,0.330853]
[1717291239776,2.4395,3834.3,3833.5,2.60853]
[1717291240089,2.4395,3834.3,3833.8,0.7]
[1717291240787,2.6081,3834.2,3833.8,0.7]
[1717291243210,2.6081,3834.2,3833.4,0.31528205]
[1717291243392,2.6081,3834.2,3833.5,0.7]
[1717291244398,2.6081,3834.2,3833.7,0.7]
[1717291245807,2.6081,3834.2,3833.4,0.31528205]
[1717291246020,2.6083,3834.0,3833.7,0.7]
[1717291246314,2.6083,3834.0,3833.4,0.31528205]
[1717291246315,2.6083,3834.0,3833.6,0.7]
[1717291246512,2.6083,3834.0,3833.4,0.31528205]
[1717291246703,2.6083,3834.0,3833.7,0.7]
[1717291247717,2.6083,3834.0,3833.6,0.7]
[1717291248013,2.6083,3834.0,3833.0,2.3974]
[1717291248014,2.60844,3833.7,3833.0,2.3974]
[1717291248221,2.60844,3833.7,3833.5,0.7]
[1717291250542,2.60844,3833.7,3833.6,0.05068991]
[1717291259007,2.60844,3833.7,3833.3,0.7]
[1717291259210,2.60844,3833.7,3833.6,0.04775928]
[1717291259445,2.60844,3833.7,3833.5,0.7]
[1717291259629,2.60844,3833.7,3833.6,0.04775928]
[1717291261131,2.60844,3833.7,3833.4,0.7]
[1717291261452,2.60844,3833.7,3833.6,0.04775928]
[1717291261975,2.60867,3833.4,3832.6,2.60918]
[1717291262263,2.2726,3833.3,3832.6,2.60918]
[1717291262410,2.2726,3833.3,3832.9,0.7]
[1717291262616,2.2726,3833.3,3832.7,0.507278]
[1717291262811,2.2726,3833.3,3833.0,0.7]
[1717291264621,2.60878,3833.2,3832.3,2.4636]
[1717291265106,2.60878,3833.2,3833.0,0.7]
[1717291265895,2.60878,3833.2,3833.1,0.04804453]
[1717291266094,2.60878,3833.2,3832.1,2.4636]
[1717291266095,3.096918,3833.2,3832.1,2.4636]
[1717291266298,2.60902,3832.9,3832.6,0.7]
[1717291266674,2.60902,3832.9,3832.1,2.4636]
[1717291266675,2.60902,3832.9,3832.8,0.7]
[1717291268366,2.60902,3832.9,3832.6,0.7]
[1717291268612,2.2726,3832.8,3832.1,2.4636]
[1717291268782,2.2726,3832.8,3832.5,0.7]
[1717291268982,2.2726,3832.8,3832.6,0.7]
[1717291270068,2.2726,3832.8,3832.5,0.7]
[1717291270477,2.60913,3832.7,3831.8,2.6097]
[1717291270677,2.60913,3832.7,3832.5,0.7]
[1717291281026,2.60913,3832.7,3832.6,0.04854839]
[1717291281394,2.60913,3832.7,3832.5,0.7]
[1717291281596,2.60913,3832.7,3832.6,0.04854839]
[1717291281788,2.60913,3832.7,3832.5,0.7]
[1717291282002,2.60913,3832.7,3832.6,0.04854839]
[1717291282329,2.60913,3832.7,3832.5,0.7]
[1717291282495,2.60913,3832.7,3832.6,0.04854839]
[1717291282832,2.60913,3832.7,3832.5,0.7]
[1717291283141,2.60913,3832.7,3832.6,0.04854839]
[1717291283321,2.60913,3832.7,3832.5,0.7]
[1717291283505,2.60913,3832.7,3832.6,0.04854839]
[1717291283838,2.60913,3832.7,3832.5,0.7]
[1717291284131,2.60913,3832.7,3832.6,0.04854839]
[1717291284333,2.60913,3832.7,3832.5,0.7]
[1717291284535,2.60913,3832.7,3832.6,0.04854839]
[1717291284725,2.60913,3832.7,3832.5,0.7]
[1717291284925,2.60913,3832.7,3832.6,0.04854839]
[1717291285229,2.60913,3832.7,3832.5,0.7]
[1717291285730,2.60913,3832.7,3832.6,0.04854839]
[1717291285938,2.60913,3832.7,3832.5,0.7]
[1717291286112,2.60913,3832.7,3832.6,0.04857925]
[1717291286313,2.60913,3832.7,3832.5,0.7]
[1717291286529,2.60913,3832.7,3832.6,0.04696626]
[1717291286843,2.60913,3832.7,3832.5,0.7]
[1717291287156,2.60913,3832.7,3832.6,0.04696626]
[1717291287319,2.60913,3832.7,3832.5,0.7]
[1717291287507,2.60913,3832.7,3832.6,0.04696626]
[1717291287847,2.60913,3832.7,3832.5,0.7]
[1717291288353,2.60913,3832.7,3832.6,0.04696626]
[1717291288554,2.60913,3832.7,3832.5,0.7]
[1717291288741,2.60913,3832.7,3832.6,0.04696626]
[1717291289037,2.60913,3832.7,3832.5,0.7]
[1717291289337,2.60913,3832.7,3832.6,0.04696626]
[1717291289515,1.56700216,3832.9,3832.5,0.7]
[1717291289839,2.60892,3833.0,3832.8,0.7]
[1717291290515,2.60892,3833.0,3832.9,0.04690363]
[1717291290700,2.60892,3833.0,3832.8,0.7]
[1717291291039,2.60892,3833.0,3832.9,0.04690363]
[1717291291438,2.60892,3833.0,3832.8,0.7]
[1717291291956,2.60892,3833.0,3832.9,0.04690363]
[1717291292110,1.56700216,3833.2,3832.8,0.7]
[1717291292315,0.56407409,3833.2,3833.1,0.7]
[1717291292511,4.17551216,3833.6,3833.1,0.74670151]
[1717291292825,1.56700216,3833.8,3833.5,0.7]
[1717291293025,1.56700216,3833.8,3833.7,0.7]
[1717291293230,2.1309928,3833.8,3833.7,0.7]
[1717291294845,0.56399064,3833.8,3833.7,0.7]
[1717291295340,0.56399064,3833.8,3833.5,0.7]
[1717291295543,2.1309928,3833.8,3833.7,0.04618273]
[1717291295740,2.1309928,3833.8,3833.5,0.7]
[1717291295944,2.1309928,3833.8,3833.7,0.04619559]
[1717291296238,0.56399064,3833.8,3833.5,0.7]
[1717291296632,0.56399064,3833.8,3833.6,0.04622589]
[1717291297030,0.56399064,3833.8,3833.7,0.7]
[1717291297343,2.60837,3833.8,3833.7,0.7]
[1717291297542,5.60837,3833.8,3833.7,0.7]
[1717291298958,2.60837,3833.8,3833.7,0.7]
[1717291299258,13.18,3834.7,3833.7,0.7]
[1717291299259,1.56700216,3834.1,3833.7,0.7]
[1717291299560,2.60816,3834.2,3833.9,0.7]
[1717291299726,2.60816,3834.2,3834.1,0.7]
[1717291302065,2.60816,3834.2,3833.4,2.4297]
[1717291302230,2.60816,3834.2,3834.1,0.7]
[1717291303159,2.60816,3834.2,3833.5,0.503841]
[1717291303346,2.60816,3834.2,3834.1,0.74596384]
[1717291303548,2.60816,3834.2,3834.1,0.7]
[1717291303748,1.56700216,3834.4,3834.1,0.7]
[1717291303954,1.56700216,3835.0,3834.3,0.7]
[1717291304265,4.9958,3835.1,3834.8,0.7]
[1717291304266,2.60763,3834.9,3834.8,0.7]
[1717291305154,5.60763,3834.9,3834.8,0.7]
[1717291307364,5.60763,3834.9,3834.6,0.7]
[1717291307679,2.60792,3834.5,3834.4,0.7]
[1717291307828,3.0,3834.9,3833.7,2.4297]
[1717291307829,2.60806,3834.3,3833.7,2.4297]
[1717291308034,2.60806,3834.3,3834.1,0.7]
[1717291308938,2.3883,3834.4,3833.1,2.4297]
[1717291308939,2.60824,3834.0,3833.1,2.4297]
[1717291309174,2.60824,3834.0,3833.8,0.7]
[1717291310434,2.60824,3834.0,3833.1,2.4297]
[1717291310636,2.60824,3834.0,3833.8,0.7]
[1717291311054,2.3883,3833.9,3833.8,0.7]
[1717291311885,2.3883,3833.9,3833.6,0.7]
[1717291312183,2.3883,3833.9,3833.7,0.04581502]
[1717291312573,2.60837,3833.8,3833.7,0.04581502]
[1717291315697,8.88647012,3834.5,3833.7,0.04581502]
[1717291315896,3.0,3834.4,3833.7,2.47551502]
[1717291316187,3.0,3834.4,3834.3,0.7]
[1717291316595,5.3883,3834.6,3834.3,0.74589552]
[1717291316756,6.08377701,3834.6,3834.3,0.7]
[1717291317089,0.56388693,3834.5,3834.3,0.7]
[1717291317286,3.56388693,3834.5,3834.3,0.7]
[1717291317492,6.17184693,3834.5,3834.3,0.7]
[1717291317794,5.60796,3834.5,3834.3,0.7]
[1717291318382,7.17443012,3834.5,3834.3,0.7]
[1717291318692,8.20025083,3834.5,3834.3,0.7]
[1717291319055,0.56388722,3834.4,3834.3,0.7]
[1717291319760,2.13035734,3834.4,3834.3,0.7]
[1717291319960,5.13035734,3834.4,3834.3,0.7]
[1717291321256,2.60809,3834.3,3834.1,0.7]
[1717291321613,4.73835664,3834.3,3834.2,0.04587181]
[1717291321910,6.17197722,3834.3,3834.1,0.7]
[1717291322063,2.60809,3834.3,3834.1,0.7]
[1717291322263,2.60809,3834.3,3834.2,0.04587181]
[1717291322467,7.73836594,3834.3,3834.2,0.04587181]
[1717291322792,7.73836594,3834.3,3834.1,0.7]
[1717291323096,5.60809,3834.3,3834.2,0.04587181]
[1717291323271,6.17200025,3834.3,3834.2,0.04587181]
[1717291323470,6.17200025,3834.3,3834.1,0.7]
[1717291323786,2.13032567,3834.2,3834.1,0.7]
[1717291324097,2.13032567,3834.2,3833.4,4.90014]
[1717291324098,2.60826,3834.0,3833.1,2.2915]
[1717291324264,2.60826,3834.0,3833.9,0.7]
[1717291324755,4.95956,3834.0,3833.9,0.7]
[1717291326090,5.52348856,3834.0,3833.9,0.7]
[1717291326292,5.52348856,3834.0,3833.6,0.7]
[1717291326293,2.60844,3833.7,3833.6,0.7]
[1717291326705,2.60844,3833.7,3833.6,0.74606387]
[1717291327523,2.60844,3833.7,3833.6,0.04606387]
[1717291327827,4.73882198,3833.7,3833.4,0.7]
[1717291328111,2.60858,3833.5,3833.4,0.7]
[1717291328406,2.60858,3833.5,3833.2,0.7]
[1717291332395,2.60883,3833.2,3832.7,0.992917]
[1717291332561,2.60883,3833.2,3833.1,0.7]
[1717291333065,2.4469,3833.4,3832.2,2.2574]
[1717291333066,2.60899,3832.9,3832.2,2.2574]
[1717291333291,2.60899,3832.9,3832.8,0.7]
[1717291333595,2.60899,3832.9,3832.8,0.04649662]
[1717291333803,2.60899,3832.9,3832.6,0.7]
[1717291333990,2.60899,3832.9,3832.8,0.04649662]
[1717291334187,2.60899,3832.9,3832.6,0.7]
[1717291334392,2.60899,3832.9,3832.8,0.04649662]
[1717291334614,2.60899,3832.9,3832.6,0.7]
[1717291334790,2.60899,3832.9,3832.8,0.04649662]
[1717291335097,2.60899,3832.9,3832.8,0.7]
[1717291335598,2.60921,3832.6,3832.5,0.7]
[1717291337609,2.60921,3832.6,3831.8,0.50733]
[1717291337792,2.60921,3832.6,3832.5,0.7]
[1717291339650,2.60921,3832.6,3831.8,0.50733]
[1717291339794,2.60921,3832.6,3832.5,0.7]
[1717291340433,2.60921,3832.6,3831.8,0.50733]
[1717291340633,2.60921,3832.6,3832.5,0.7]
[1717291341326,2.60921,3832.6,3832.5,0.74735171]
[1717291345716,2.4469,3833.0,3832.5,0.74735171]
[1717291345717,5.05586,3833.0,3832.5,0.74735171]
[1717291345913,5.05586,3833.0,3832.9,0.7]
[1717291346221,5.05586,3833.0,3832.9,0.74719443]
[1717291346754,2.60896,3833.0,3832.9,0.74719443]
[1717291347330,2.60896,3833.0,3832.9,0.7]
[1717291349768,4.06561631,3833.3,3832.9,3.0306]
[1717291349769,1.56691631,3833.3,3832.9,3.0306]
[1717291349970,1.56691631,3833.3,3832.4,2.60932]
[1717291349971,2.4987,3833.1,3832.4,2.60932]
[1717291350264,2.4987,3833.1,3832.9,0.74712494]
[1717291350547,2.60879,3833.2,3832.9,0.7]
[1717291350736,2.60879,3833.2,3833.0,0.04701486]
[1717291352024,3.27623063,3833.2,3833.0,0.04701486]
[1717291352222,2.60907,3832.8,3832.5,0.7]
[1717291352452,5.10777,3832.8,3832.5,0.7]
[1717291352751,5.10777,3832.8,3832.7,0.7]
[1717291356670,5.67185964,3832.8,3832.7,0.7]
[1717291357354,7.23877595,3832.8,3832.7,0.7]
[1717291357921,5.67186851,3832.8,3832.7,0.7]
[1717291358473,7.23880882,3832.8,3832.7,0.7]
[1717291359083,7.23880875,3832.8,3832.7,0.7]
[1717291360363,5.67186849,3832.8,3832.7,0.7]
[1717291362451,5.67186849,3832.8,3832.5,0.7]
[1717291362735,1.56695933,3832.6,3832.5,0.7]
[1717291362937,2.13105782,3832.6,3832.5,0.7]
[1717291363135,1.56695933,3832.6,3832.5,0.7]
[1717291363335,2.13105782,3832.6,3832.5,0.7]
[1717291364845,1.56695933,3832.6,3832.5,0.7]
[1717291365268,3.17328849,3832.6,3832.5,0.7]
[1717291366970,3.17328849,3832.6,3831.7,2.3435]
[1717291367194,2.13107562,3832.5,3831.8,0.49533]
[1717291367370,2.13107562,3832.5,3832.4,0.7]
[1717291369139,2.13107562,3832.5,3831.8,0.49533]
[1717291369351,2.13107562,3832.5,3832.4,0.7]
[1717291369861,2.13110919,3832.5,3832.4,0.7]
[1717291371678,2.60942,3832.3,3831.7,2.3435]
[1717291371839,2.60942,3832.3,3832.2,0.7]
[1717291374583,4.74054331,3832.3,3832.2,0.7]
[1717291376452,3.17355126,3832.3,3832.2,0.7]
[1717291376653,4.74054331,3832.3,3832.2,0.7]
[1717291379088,4.74054331,3832.3,3831.8,0.49533]
[1717291379395,4.74054331,3832.3,3832.2,0.7]
[1717291379590,4.74054395,3832.3,3832.2,0.7]
[1717291380910,3.1735519,3832.3,3832.2,0.7]
[1717291382689,3.1735519,3832.3,3831.8,0.49533]
[1717291383006,2.60942,3832.3,3832.2,0.7]
[1717291383170,3.17355591,3832.3,3832.2,0.7]
[1717291385297,3.1735536,3832.3,3832.2,0.7]
[1717291385871,2.60942,3832.3,3832.2,0.74568461]
[1717291386814,3.17355207,3832.3,3832.2,0.74568461]
[1717291388471,4.74058985,3832.3,3832.2,0.74568461]
[1717291390573,3.17355207,3832.3,3832.2,0.74568461]
[1717291391402,3.17355207,3832.3,3832.2,0.04568461]
[1717291391697,4.74058985,3832.3,3832.2,0.7]
[1717291391990,2.13116985,3832.3,3832.2,0.74568461]
[1717291395775,0.56413207,3832.3,3832.2,0.74568461]
[1717291396265,0.56413207,3832.3,3832.2,0.04568461]
[1717291396465,0.56413207,3832.3,3832.2,0.7]
[1717291396667,0.56413207,3832.3,3832.2,0.74568461]
[1717291398563,2.13118336,3832.3,3832.2,0.74568461]
[1717291398912,0.56413207,3832.3,3832.2,0.74568461]
[1717291402715,0.56414111,3832.3,3832.2,0.74568461]
[1717291409335,0.56414111,3832.3,3832.2,0.04568461]
[1717291409536,0.56414111,3832.3,3832.2,0.74568461]
[1717291409701,0.56414111,3832.3,3832.2,0.7]
[1717291410046,0.56414111,3832.3,3832.2,0.74572579]
[1717291414676,2.96624111,3832.3,3832.2,0.74572579]
[1717291414926,2.96624111,3832.3,3832.2,0.7]
[1717291415081,2.4021,3832.3,3832.2,0.7]
[1717291415404,0.56415346,3832.3,3832.2,0.7]
[1717291415907,0.56415346,3832.3,3831.5,2.60992]
[1717291416112,2.13124542,3832.2,3831.6,0.54836716]
[1717291416314,2.13124542,3832.2,3832.1,0.7]
[1717291416618,2.60939,3832.4,3832.1,0.74575353]
[1717291416781,2.60939,3832.4,3832.3,0.7]
[1717291416981,3.1735434,3832.4,3832.3,0.7]
[1717291421295,3.1735445,3832.4,3832.3,0.7]
[1717291422600,3.1735445,3832.4,3831.6,0.502462]
[1717291422849,3.1735445,3832.4,3831.7,0.5527082]
[1717291422850,1.56709244,3832.0,3831.7,0.5527082]
[1717291423138,1.56709244,3832.1,3831.9,0.7]
[1717291423420,0.56415863,3832.0,3831.7,0.5527082]
[1717291423622,1.56709244,3832.1,3831.9,0.7]
[1717291423849,0.56415901,3832.0,3831.9,0.7]
[1717291425708,2.13125145,3832.0,3831.9,0.7]
[1717291428301,2.13128905,3832.0,3831.9,0.7]